fUSD/lending_fUSD_20250329
["ID","MTS","AMOUNT","RATE_DAILY","PERIOD"]
[356795322,1743213040626,-1313.43037417,0.00015,2]
[356795339,1743213046285,-30606.10184288,0.00015,2]
[356795340,1743213046298,-483.34470746,0.00015,2]
[356795341,1743213151228,218.66605273,0.00014634,2]
[356795343,1743213721201,218.66605274,0.00014551,2]
[356795422,1743214232280,-400.0,0.00014978,2]
[356795423,1743214232335,-107.62503948,0.00014978,2]
[356795424,1743214232346,-505.67013063,0.00014978,2]
[356795425,1743214232356,-400.1638232,0.00014978,2]
[356795426,1743214232366,-72.50596049,0.00014999,2]
[356795427,1743214232378,-130.03903951,0.00014999,2]
[356795428,1743214232390,-150.0,0.00014999,2]
[356795429,1743214232399,-300.0,0.00014999,2]
[356795430,1743214232409,-56.06236975,0.00015,2]
[356795431,1743214232599,-7495.9792893,0.00015,2]
[356795432,1743214232653,-272.80967872,0.00015,2]
[356795453,1743214238353,-2446.27148904,0.00015,2]
[356795454,1743214238364,-9247.16874785,0.00015,2]
[356795455,1743214238394,-3067.25982409,0.00015,2]
[356795456,1743214238406,-390.34999874,0.00015,2]
[356795457,1743214238449,-1182.13800481,0.00015,2]
[356795458,1743214238460,-1463.88406368,0.00015,2]
[356795459,1743214238607,-90013.02004423,0.00015,2]
[356795460,1743214238660,-4891.75415988,0.00015,2]
[356795472,1743214240390,-1414.5329418,0.00015,2]
[356795473,1743214240403,-2500.0,0.00015,2]
[356795474,1743214240502,-479.31121115,0.00015,2]
[356795475,1743214240514,-889.375035,0.00015,2]
[356795476,1743214240549,-27197.51126517,0.00015,2]
[356795477,1743214240562,-288.07999384,0.00015,2]
[356795478,1743214240574,-487.89012847,0.00015,2]
[356795479,1743214240602,-516.86075677,0.00015,2]
[356795480,1743214240716,-1540.57752819,0.00015,2]
[356795481,1743214240728,-3378.43,0.00015,2]
[356795482,1743214240739,-723.21934277,0.00015,2]
[356795483,1743214240822,-3094.86716903,0.00015,2]
[356795484,1743214240834,-448.67857483,0.00015,2]
[356795485,1743214240874,-22266.62222856,0.00015,2]
[356795495,1743214246466,-479.44583117,0.00015,2]
[356795496,1743214246482,-1599.29680104,0.00015,2]
[356795497,1743214246496,-3675.41195589,0.00015,2]
[356795498,1743214246673,-4843.91407448,0.00015,2]
[356795500,1743214333949,434.9709691,0.00014626,2]
[356795501,1743215209604,187.98185122,0.00017,30]
[356795507,1743215311581,177.00289852,0.00014799,2]
[356795886,1743215431515,-3122.2533,0.0001489,2]
[356795888,1743215431527,-36.7607,0.0001489,2]
[356795890,1743215431537,-300.0,0.00014899,2]
[356795892,1743215431547,-110.39053837,0.00014899,2]
[356795894,1743215431568,-39.60946163,0.00014899,2]
[356795895,1743215431578,-156.41660996,0.000149,2]
[356795896,1743215431587,-7934.7141,0.000149,2]
[356795897,1743215431597,-1492.708,0.000149,2]
[356795898,1743215431607,-265.0014,0.000149,2]
[356795899,1743215431617,-360.14744088,0.000149,2]
[356795900,1743215431627,-3366.36212961,0.000149,2]
[356795901,1743215431637,-175.17911482,0.000149,2]
[356795902,1743215431646,-1969.9652,0.000149,2]
[356795903,1743215431656,-500.0,0.00014973,2]
[356795904,1743215431666,-188.0,0.00014986,2]
[356795905,1743215431676,-4882.10755396,0.0001499,2]
[356795906,1743215431685,-151.0,0.00014991,2]
[356795907,1743215431695,-151.0,0.00014991,2]
[356795908,1743215431705,-151.0,0.00014991,2]
[356795909,1743215431715,-151.0,0.00014991,2]
[356795910,1743215431724,-151.0,0.00014991,2]
[356795911,1743215431734,-151.0,0.00014991,2]
[356795912,1743215431749,-151.0,0.00014991,2]
[356795913,1743215431758,-151.0,0.00014991,2]
[356795914,1743215431767,-151.0,0.00014991,2]
[356795915,1743215431778,-151.0,0.00014991,2]
[356795916,1743215431788,-151.0,0.00014991,2]
[356795917,1743215431798,-151.0,0.00014991,2]
[356795918,1743215431807,-151.0,0.00014991,2]
[356795919,1743215431817,-151.0,0.00014991,2]
[356795920,1743215431827,-151.0,0.00014991,2]
[356795921,1743215431837,-151.0,0.00014991,2]
[356795922,1743215431847,-151.0,0.00014991,2]
[356795923,1743215431857,-151.0,0.00014991,2]
[356795924,1743215431866,-151.0,0.00014991,2]
[356795925,1743215431878,-157.461949,0.00014991,2]
[356795926,1743215431888,-12010.50878488,0.00015,2]
[356795927,1743215431900,-4170.12715053,0.00015,2]
[356795928,1743215431917,-1285.81203053,0.00015,2]
[356795929,1743215431993,-1537.47542561,0.00015,2]
[356795930,1743215432006,-4193.60662579,0.00015,2]
[356795932,1743215432017,-2609.49592439,0.00015,2]
[356795935,1743215432028,-10402.38722552,0.00015,2]
[356795938,1743215432052,-5583.4433429,0.00015,2]
[356796009,1743215437633,-1104.59782165,0.00015,2]
[356796010,1743215437645,-38500.68393885,0.00015,2]
[356796033,1743215440085,-14503.96195285,0.00015,2]
[356796034,1743215440097,-830.8895924,0.00015,2]
[356796035,1743215440115,-8394.35918968,0.00015,2]
[356796046,1743215442793,-193826.00148895,0.00015,2]
[356796047,1743215442849,-967.66722004,0.00015,2]
[356796048,1743215442905,-278278.76205085,0.00015,2]
[356796049,1743215442918,-103485.87143818,0.00015,2]
[356796059,1743215445625,-24410.40610531,0.00015,2]
[356796060,1743215445648,-11958.89641713,0.00015,2]
[356796061,1743215445808,-4466.47950995,0.00015,2]
[356796062,1743215445826,-31809.48879962,0.00015,2]
[356796063,1743215445862,-259.43931699,0.00015,2]
[356796104,1743215501346,434.9709691,0.00014667,2]
[356796116,1743215703764,157.57740831,0.000251,120]
[356796118,1743216100468,1000.0,0.00025,120]
[356796119,1743216100498,1038.0,0.000251,120]
[356796120,1743216120964,30000.0,0.00025,120]
[356796121,1743216130088,500.0,0.00025,120]
[356796140,1743216409178,155.24,0.00014741,2]
[356796977,1743216631962,-269.4018,0.00014824,2]
[356796978,1743216631972,-150.0,0.00014899,2]
[356796979,1743216631981,-84.08256925,0.00014899,2]
[356796980,1743216632067,-215.91743075,0.00014899,2]
[356796981,1743216632078,-303.0,0.000149,2]
[356796982,1743216632087,-156.41660994,0.000149,2]
[356796983,1743216632096,-14180.5417,0.000149,2]
[356796984,1743216632106,-929.04906406,0.000149,2]
[356796985,1743216632115,-500.0,0.00014973,2]
[356796986,1743216632126,-660.0,0.00015,2]
[356796987,1743216632137,-59483.17477827,0.00015,2]
[356796988,1743216632148,-6043.67082095,0.00015,2]
[356797148,1743216637731,-594.0,0.00015,2]
[356797149,1743216637742,-3407.7576008,0.00015,2]
[356797150,1743216637757,-10233.470495,0.00015,2]
[356797151,1743216637769,-135414.23709979,0.00015,2]
[356797152,1743216637785,-1830.49158646,0.00015,2]
[356797153,1743216637836,-2541.63034853,0.00015,2]
[356797154,1743216637848,-425.74773039,0.00015,2]
[356797155,1743216637890,-830.49,0.00015,2]
[356797175,1743216639982,-269.40179999,0.00015,2]
[356797215,1743217152588,434.9709691,0.00014646,2]
[356797419,1743217831995,-911.0111,0.000149,2]
[356797420,1743217832005,-908.06704101,0.000149,2]
[356797421,1743217832014,-169.24084315,0.000149,2]
[356797422,1743217832023,-500.0,0.00014973,2]
[356797423,1743217832033,-1000.0,0.00014999,2]
[356797424,1743217832043,-257.538,0.00015,2]
[356797425,1743217832054,-841.0,0.00015,2]
[356797426,1743217832063,-1777.45751223,0.00015,2]
[356797427,1743217832076,-251.30046789,0.00015,2]
[356797428,1743217832087,-417.1601092,0.00015,2]
[356797429,1743217832107,-1655.2365644,0.00015,2]
[356797430,1743217832207,-257.538,0.00015,2]
[356797929,1743217837952,-15303.91226802,0.00015,2]
[356797937,1743217838010,-168581.83836612,0.00015,2]
[356797940,1743217838020,-10093.32920064,0.00015,2]
[356797941,1743217838031,-580.97921065,0.00015,2]
[356797942,1743217838064,-5799.06923783,0.00015,2]
[356797943,1743217838076,-419.229999,0.00015,2]
[356797944,1743217838171,-24996.46180847,0.00015,2]
[356797945,1743217838183,-257.20000004,0.00015,2]
[356797979,1743217840115,-344.49288416,0.00015,2]
[356797980,1743217840167,-514.50711584,0.00015,2]
[356797981,1743217840178,-800.94232094,0.00015,2]
[356797982,1743217840223,-521.24602355,0.00015,2]
[356797983,1743217840237,-1653.51170882,0.00015,2]
[356797984,1743217840330,-2976.20822404,0.00015,2]
[356797985,1743217840343,-3583.06796825,0.00015,2]
[356797986,1743217840383,-435.38038272,0.00015,2]
[356797987,1743217840548,-1089.60803042,0.00015,2]
[356798034,1743217843421,-637.76694985,0.00015,2]
[356798076,1743217846175,-768.0,0.00015,2]
[356798077,1743217846185,-4593.14754424,0.00015,2]
[356798078,1743217846196,-30254.16451058,0.00015,2]
[356798079,1743217846208,-559.06,0.00015,2]
[356798080,1743217846233,-832.193085,0.00015,2]
[356798081,1743217846244,-784.9815,0.00015,2]
[356798082,1743217846255,-1414.157248,0.00015,2]
[356798083,1743217846269,-545.152395,0.00015,2]
[356798084,1743217846281,-903.7147203,0.00015,2]
[356798085,1743217846293,-472.95900005,0.00015,2]
[356798086,1743217846304,-778.804,0.00015,2]
[356798087,1743217846323,-1079.12499968,0.00015,2]
[356798113,1743217905852,434.9709691,0.00014684,2]
[356798114,1743217947803,1128.3580567,0.0001455,2]
[356798115,1743217992857,846.2685426,0.0001455,2]
[356798116,1743218019291,-170.73297518,0.000148,2]
[356798117,1743218019313,-79.28358533,0.000148,2]
[356798118,1743218037816,634.7014069,0.0001455,2]
[356798119,1743218059072,602.68,0.00014181,2]
[356798120,1743218082867,476.0260552,0.0001455,2]
[356798121,1743218126337,-150.0,0.000148,2]
[356798122,1743218127819,357.0195414,0.0001455,2]
[356798124,1743218172909,267.764656,0.0001455,2]
[356798125,1743218217844,200.823492,0.0001455,2]
[356798126,1743218234574,-164.13,0.000148,2]
[356798127,1743218262909,150.617619,0.0001455,2]
[356798128,1743218294584,-158.38440415,0.000148,2]
[356798129,1743218307846,150.6176191,0.0001455,2]
[356798130,1743218336838,170.73297516,0.00014799,2]
[356798131,1743218343444,-150.0,0.000148,2]
[356798132,1743218352896,150.6176191,0.0001455,2]
[356798133,1743218388447,150.0,0.00014725,2]
[356798134,1743218397848,150.6176191,0.0001455,2]
[356798136,1743218581871,300.0,0.00014799,2]
[356798139,1743218608926,1114.48559585,0.000147,2]
[356798140,1743218668935,1009.0,0.000147,2]
[356798141,1743218694253,170.73297516,0.00014709,2]
[356798142,1743218739437,197.84,0.0001284,2]
[356798145,1743218829733,230.51357309,9.14e-05,2]
[356798150,1743218877767,12884.38357291,0.0001,2]
[356798153,1743218910413,-1053.0,0.000148,2]
[356798154,1743218910439,-3576.04376742,0.000148,2]
[356798156,1743218910467,-679.34472964,0.00014809,2]
[356798157,1743218910494,-300.0,0.0001481,2]
[356798159,1743218910521,-590.0,0.00014812,2]
[356798160,1743218910549,-515.73236009,0.00014899,2]
[356798161,1743218910581,-351.35725867,0.00014899,2]
[356798162,1743218910608,-251.71358481,0.00014899,2]
[356798163,1743218910637,-158.38440415,0.00014899,2]
[356798164,1743218910665,-150.0,0.00014899,2]
[356798165,1743218910694,-167.911,0.00014899,2]
[356798166,1743218910725,-5634.75460952,0.000149,2]
[356798167,1743218910760,-6714.12085715,0.000149,2]
[356798168,1743218910802,-6714.12085715,0.000149,2]
[356798169,1743218910841,-6714.12085715,0.000149,2]
[356798170,1743218910887,-6714.12085715,0.000149,2]
[356798171,1743218910926,-4896.76087296,0.000149,2]
[356798172,1743218914597,915.29080647,9.828e-05,2]
[356798175,1743218927357,151.99965953,0.00012,2]
[356798443,1743218968590,-968.51658176,0.000149,2]
[356798610,1743218975952,-200.0,0.000149,2]
[356798611,1743218977004,-702.45251824,0.000149,2]
[356798612,1743218986405,-350.0,0.00014899,2]
[356798613,1743219001233,-350.0,0.000148,2]
[356798614,1743219010471,-1164.0880617,0.000148,2]
[356798615,1743219010499,-508.2479664,0.0001485,2]
[356798629,1743219032193,-536.83568415,0.0001485,2]
[356798630,1743219032205,-1202.68287334,0.0001485,2]
[356798631,1743219032311,-3827.24738291,0.0001485,2]
[356798632,1743219032323,-4168.56843775,0.0001485,2]
[356798633,1743219032334,-10083.13759722,0.0001485,2]
[356798634,1743219032344,-118.51104152,0.00014899,2]
[356798635,1743219032354,-150.0,0.00014899,2]
[356798636,1743219032363,-717.22936126,0.000149,2]
[356798637,1743219032379,-1648.22776271,0.000149,2]
[356798638,1743219032410,-54512.53376495,0.000149,2]
[356798639,1743219032420,-810.205,0.000149,2]
[356798640,1743219032429,-38900.7964,0.000149,2]
[356798641,1743219032439,-1394.8308,0.000149,2]
[356798642,1743219032449,-317.912,0.000149,2]
[356798643,1743219032459,-6318.6244,0.000149,2]
[356798644,1743219032470,-279.1575,0.000149,2]
[356798645,1743219032479,-216.63627229,0.000149,2]
[356798646,1743219032489,-461.34154074,0.000149,2]
[356798647,1743219032499,-1027.06686922,0.000149,2]
[356798648,1743219032509,-500.0,0.00014973,2]
[356798649,1743219032518,-171.28614663,0.00014973,2]
[356798650,1743219032528,-37242.48212686,0.00015,2]
[356798651,1743219032541,-1302.66754437,0.00015,2]
[356798652,1743219032557,-1420.6938666,0.00015,2]
[356798653,1743219032574,-556.26670477,0.00015,2]
[356798655,1743219032591,-126227.80882992,0.00015,2]
[356798657,1743219032606,-946.99381483,0.00015,2]
[356798773,1743219038112,-24375.75429604,0.00015,2]
[356798774,1743219038275,-589.97551441,0.00015,2]
[356798957,1743219040420,-1029.02094441,0.00015,2]
[356798960,1743219040432,-1444.56559772,0.00015,2]
[356798977,1743219040589,-0.02822311,0.00015,2]
[356798978,1743219040643,-67550.0,0.00015,2]
[356798979,1743219040754,-4614.19414715,0.00015,2]
[356798980,1743219040766,-4019.09127962,0.00015,2]
[356798981,1743219040778,-315.6,0.00015,2]
[356798990,1743219043375,-797.70304762,0.00015,2]
[356798991,1743219043491,-23973.95721219,0.00015,2]
[356799008,1743219045321,-534.29320329,0.00015,2]
[356799009,1743219046129,-777.69084732,0.00015,2]
[356799010,1743219046142,-7201.90247,0.00015,2]
[356799011,1743219046185,-10471.784483,0.00015,2]
[356799012,1743219046351,-533.92500258,0.00015,2]
[356799013,1743219046460,-7904.01203988,0.00015,2]
[356799020,1743219308412,610.67,0.00013956,2]
[356799021,1743219350142,-150.0,0.000148,2]
[356799022,1743219428207,158.340393,7.945e-05,2]
[356799023,1743219435276,434.9709691,0.00014562,2]
[356799024,1743219537893,236.7384297,0.0001455,2]
[356799025,1743219582848,177.5538223,0.0001455,2]
[356799026,1743219627912,177.5538223,0.0001455,2]
[356799027,1743219672864,177.5538223,0.0001455,2]
[356799028,1743219717811,177.5538223,0.0001455,2]
[356799287,1743220231384,-49.24712793,0.000148,2]
[356799288,1743220231395,-3406.22608961,0.0001485,2]
[356799289,1743220231404,-270.345,0.0001485,2]
[356799290,1743220231414,-150.0,0.00014899,2]
[356799291,1743220231424,-1881.4584,0.000149,2]
[356799292,1743220231434,-349.9261,0.000149,2]
[356799293,1743220231444,-868.4059,0.000149,2]
[356799294,1743220231454,-778.01680061,0.000149,2]
[356799295,1743220231468,-179.93250035,0.000149,2]
[356799296,1743220231480,-11.53369953,0.000149,2]
[356799297,1743220231490,-2197.4381448,0.000149,2]
[356799298,1743220231509,-1810.5618552,0.000149,2]
[356799299,1743220231519,-195.99042271,0.000149,2]
[356799300,1743220231529,-997.09485405,0.000149,2]
[356799301,1743220231538,-500.0,0.00014973,2]
[356799302,1743220231548,-3651.6415185,0.00014995,2]
[356799303,1743220231557,-361.4279059,0.00014995,2]
[356799304,1743220231567,-1003.17646235,0.00014999,2]
[356799305,1743220231577,-1000.4574,0.00014999,2]
[356799306,1743220231587,-4722.37062971,0.00014999,2]
[356799307,1743220231596,-698.0,0.00015,2]
[356799308,1743220231606,-193740.47996741,0.00015,2]
[356799309,1743220231615,-170245.66982884,0.00015,2]
[356799310,1743220231629,-580.09410336,0.00015,2]
[356799311,1743220231640,-1139.681725,0.00015,2]
[356799312,1743220231652,-3056.0375105,0.00015,2]
[356799313,1743220231663,-3890.22791917,0.00015,2]
[356799314,1743220231678,-413.21193929,0.00015,2]
[356799315,1743220231691,-1301.36397506,0.00015,2]
[356799316,1743220231703,-950.26546194,0.00015,2]
[356799317,1743220231714,-1266.60175907,0.00015,2]
[356799318,1743220231726,-628.42,0.00015,2]
[356799319,1743220231738,-396.16,0.00015,2]
[356799320,1743220231749,-6530.04607583,0.00015,2]
[356799321,1743220231762,-83264.32757251,0.00015,2]
[356799322,1743220231773,-1098.60154289,0.00015,2]
[356799323,1743220231785,-447.46047696,0.00015,2]
[356799324,1743220231797,-29315.88792326,0.00015,2]
[356799325,1743220231807,-42609.4255124,0.00015,2]
[356799326,1743220231819,-1387.27748929,0.00015,2]
[356799327,1743220231832,-8349.74401468,0.00015,2]
[356799328,1743220231843,-5622.03985906,0.00015,2]
[356799329,1743220231855,-752.7028385,0.00015,2]
[356799679,1743220237320,-162.47593309,0.000149,2]
[356799680,1743220237334,-625.0,0.00015,2]
[356799681,1743220237348,-1337.52406691,0.00015,2]
[356799682,1743220237365,-925.1,0.00015,2]
[356799683,1743220237381,-496.17825007,0.00015,2]
[356799684,1743220237397,-498.014838,0.00015,2]
[356799685,1743220237432,-1374.5550006,0.00015,2]
[356799686,1743220237449,-1029.578,0.00015,2]
[356799687,1743220237465,-20124.82546883,0.00015,2]
[356799688,1743220237484,-614.6374616,0.00015,2]
[356799689,1743220237545,-449.500001,0.00015,2]
[356799690,1743220237562,-736.57390145,0.00015,2]
[356799691,1743220237579,-1026.92935832,0.00015,2]
[356799692,1743220237596,-368.47889,0.00015,2]
[356799693,1743220237613,-680.891175,0.00015,2]
[356799694,1743220237630,-528.69395831,0.00015,2]
[356799695,1743220237648,-859.54031443,0.00015,2]
[356799729,1743220239562,-7901.67657273,0.00015,2]
[356799730,1743220239575,-5765.18510963,0.00015,2]
[356799731,1743220239671,-3150.11392817,0.00015,2]
[356799732,1743220239683,-1106.48039432,0.00015,2]
[356799733,1743220239726,-1025.06710056,0.00015,2]
[356799734,1743220239737,-643.47365204,0.00015,2]
[356799735,1743220239835,-8304.301191,0.00015,2]
[356799736,1743220239945,-2335.29685159,0.00015,2]
[356799737,1743220239957,-329.28606669,0.00015,2]
[356799738,1743220239969,-1034.6788,0.00015,2]
[356799840,1743220242518,-1794.0,0.00015,2]
[356799858,1743220287886,177.5538222,0.0001455,2]
[356799859,1743220332844,177.5538223,0.0001455,2]
[356799860,1743220377844,177.5538223,0.0001455,2]
[356799861,1743220380204,616.36,0.00013428,2]
[356799862,1743220431256,150.0,0.00014644,2]
[356799863,1743220458845,-202.672,0.000148,2]
[356799864,1743220467899,177.5538223,0.0001455,2]
[356799865,1743220491412,150.0,0.00014754,2]
[356799866,1743220536492,1035.93965582,0.00014797,2]
[356799867,1743220551490,150.0,0.0001472,2]
[356799868,1743220551524,150.0,0.00014731,2]
[356799869,1743220551604,150.0,0.00014719,2]
[356799870,1743220551637,150.0,0.0001475,2]
[356799871,1743220551670,150.0,0.00014688,2]
[356799872,1743220551856,150.0,0.00014728,2]
[356799873,1743220551890,150.0,0.00014662,2]
[356799874,1743220551930,150.0,0.00014748,2]
[356799875,1743220551964,150.0,0.00014762,2]
[356799876,1743220551997,150.0,0.00014777,2]
[356799877,1743220552029,196.42590612,0.00014673,2]
[356799878,1743220569799,-159.79533431,0.000148,2]
[356799879,1743220611549,6578.94,0.00014389,2]
[356799880,1743220681333,-150.0,0.000148,2]
[356799881,1743220694899,500.0,0.00014352,2]
[356799882,1743220717951,434.9709691,0.00014718,2]
[356799883,1743220790166,-150.24,0.000148,2]
[356799884,1743220826030,171.08,0.00014379,2]
[356799885,1743221031310,150.0,0.00014797,2]
[356799891,1743221211186,150.0,0.00014687,2]
[356799947,1743221431722,-500.0,0.000148,2]
[356799948,1743221431732,-451.95260346,0.000148,2]
[356799949,1743221431741,-216.276,0.00014899,2]
[356799950,1743221431751,-150.0,0.00014899,2]
[356799951,1743221431761,-300.0,0.00014899,2]
[356799952,1743221431771,-508.5519,0.000149,2]
[356799953,1743221431781,-743.0583,0.000149,2]
[356799954,1743221431791,-914.8417,0.000149,2]
[356799955,1743221431800,-109.94957707,0.000149,2]
[356799956,1743221431812,-788.62372293,0.000149,2]
[356799957,1743221431822,-1302.0863,0.000149,2]
[356799958,1743221431831,-1000.0,0.000149,2]
[356799959,1743221431841,-10778.15246643,0.000149,2]
[356799960,1743221431852,-9159.70823357,0.000149,2]
[356799961,1743221431861,-944.20713259,0.000149,2]
[356799962,1743221431870,-2531.3714,0.000149,2]
[356799963,1743221431880,-223.8151,0.000149,2]
[356799964,1743221431889,-2468.8593,0.000149,2]
[356799965,1743221431898,-2874.2831,0.000149,2]
[356799966,1743221431907,-500.0,0.000149,2]
[356799967,1743221431917,-202.672,0.00014989,2]
[356799968,1743221431927,-159.79533431,0.00014999,2]
[356799969,1743221431936,-150.0,0.00014999,2]
[356799970,1743221431945,-150.24,0.00014999,2]
[356799971,1743221431954,-60604.65133095,0.00015,2]
[356799972,1743221431966,-453.51,0.00015,2]
[356799973,1743221431989,-298.86,0.00015,2]
[356799974,1743221432000,-2995.11799,0.00015,2]
[356799975,1743221432017,-978.02127164,0.00015,2]
[356799976,1743221432028,-3162.85049579,0.00015,2]
[356799977,1743221432048,-15270.21653532,0.00015,2]
[356799986,1743221437751,-386.8134353,0.00014899,2]
[356799998,1743221439792,-113.1865647,0.00014899,2]
[356799999,1743221439802,-200.17853843,0.00014899,2]
[356800000,1743221439812,-938.86572618,0.000149,2]
[356800001,1743221439824,-61.13427382,0.000149,2]
[356800002,1743221439834,-299.17944795,0.00015,2]
[356800003,1743221439845,-498.56879362,0.00015,2]
[356800004,1743221439856,-23471.43105871,0.00015,2]
[356800005,1743221440001,-981.89589485,0.00015,2]
[356800018,1743221445193,-2708.784,0.00015,2]
[356800019,1743221445839,-4255.8698454,0.00015,2]
[356800020,1743221445852,-4878.64000085,0.00015,2]
[356800021,1743221445865,-760.28299997,0.00015,2]
[356800022,1743221445880,-983.459624,0.00015,2]
[356800025,1743221547845,177.5538223,0.0001455,2]
[356800027,1743221592912,177.5538223,0.0001455,2]
[356800028,1743221600137,623.41,0.0001324,2]
[356800029,1743221637873,177.5538223,0.0001455,2]
[356800030,1743221811470,150.0,0.00014532,2]
[356800031,1743221906655,495.94,0.00014721,2]
[356800032,1743221918771,825.57,0.00014739,2]
[356800033,1743221932116,4656.45,0.00014739,2]
[356800034,1743221957434,434.9709691,0.00014721,2]
[356800035,1743221962030,1000.0,0.0001473,2]
[356800036,1743222105952,23900.0,0.00014756,2]
[356800037,1743222327962,2571.77600917,0.00011,2]
[356800042,1743222360133,529.0,0.000148,2]
[356800123,1743222578102,-238.95730784,0.000148,2]
[356800132,1743222602937,-376.86339216,0.000148,2]
[356800134,1743222602965,-1623.13660784,0.000148,2]
[356800145,1743222631791,-247.75195016,0.000148,2]
[356800147,1743222631802,-150.0,0.00014839,2]
[356800149,1743222631811,-150.0,0.00014899,2]
[356800151,1743222631821,-171.13804284,0.000149,2]
[356800152,1743222631850,-328.86195716,0.000149,2]
[356800153,1743222631863,-837.40086925,0.000149,2]
[356800154,1743222631910,-259.7595,0.000149,2]
[356800155,1743222631921,-953.71183075,0.000149,2]
[356800156,1743222631931,-557.49342064,0.000149,2]
[356800157,1743222631943,-365.19994533,0.000149,2]
[356800158,1743222631954,-562.5,0.000149,2]
[356800159,1743222631967,-970.99304133,0.000149,2]
[356800160,1743222631978,-927.61514,0.000149,2]
[356800161,1743222632027,-7783.9627527,0.000149,2]
[356800162,1743222632037,-1475.6587,0.000149,2]
[356800163,1743222632051,-1436.73,0.000149,2]
[356800164,1743222632060,-781.21721286,0.000149,2]
[356800165,1743222632072,-410.54014419,0.000149,2]
[356800166,1743222632083,-1429.35914588,0.000149,2]
[356800167,1743222632092,-1351.07985033,0.000149,2]
[356800168,1743222632102,-2500.0,0.000149,2]
[356800169,1743222632111,-160.87229059,0.000149,2]
[356800170,1743222632122,-215.10887776,0.00014901,2]
[356800171,1743222632131,-505.21990849,0.00014973,2]
[356800172,1743222632141,-152.43384132,0.00014973,2]
[356800173,1743222632150,-500.0,0.00014973,2]
[356800174,1743222632160,-155.24355045,0.00014973,2]
[356800175,1743222632169,-155.44177499,0.00014973,2]
[356800176,1743222632178,-153.53109446,0.00014973,2]
[356800177,1743222632188,-279.36952154,0.00014973,2]
[356800178,1743222632199,-221.70521565,0.00014973,2]
[356800179,1743222632209,-160.521229,0.00014973,2]
[356800180,1743222632218,-173.02,0.00014989,2]
[356800181,1743222632228,-55.20169719,0.00014989,2]
[356800182,1743222632240,-156.70830281,0.00014989,2]
[356800183,1743222632249,-250.0,0.00014996,2]
[356800184,1743222632258,-542.19169719,0.00015,2]
[356800186,1743222632270,-312.5,0.00015,2]
[356800236,1743222637711,-983.76745006,0.00015,2]
[356800237,1743222637724,-439.2082749,0.00015,2]
[356800238,1743222637735,-358.33485164,0.00015,2]
[356800239,1743222637748,-14340.35495664,0.00015,2]
[356800240,1743222637765,-12000.0,0.00015,2]
[356800241,1743222637777,-50897.56208084,0.00015,2]
[356800242,1743222637789,-45295.0453,0.00015,2]
[356800243,1743222637990,-3821.21033686,0.00015,2]
[356800244,1743222638001,-2047.39360842,0.00015,2]
[356800245,1743222638013,-1235.0,0.00015,2]
[356800246,1743222638029,-11610.86009018,0.00015,2]
[356800247,1743222638042,-4770.83653177,0.00015,2]
[356800248,1743222638066,-0.48256776,0.00015,2]
[356800249,1743222638078,-260837.30825571,0.00015,2]
[356800250,1743222638100,-689.32368187,0.00015,2]
[356800252,1743222638111,-945.17380999,0.00015,2]
[356800254,1743222638124,-11333.89980342,0.00015,2]
[356800256,1743222638137,-13050.4944388,0.00015,2]
[356800259,1743222638151,-359.28,0.00015,2]
[356800261,1743222638163,-485.4608619,0.00015,2]